Workbook

Sheet Berechnung der Werte
B1: Holmberechnung für Sandwich- oder Schalenbautragflächen
B2: Dyna
B3: (C) Christian Baron 11.2013
B4: Das Kopieren und die Weitergabe dieses Programms für nicht kommerzielle Zwecke ist unter Nennung der Quelle erlaubt
B5: Eingabefelder sind rot
B6: Ergebnisfelder sind grün
B7: Ergebnisfeld in blau ist als Diagramm vorhanden
B9: Bitte die Kommentare bei bestimmten Werten beachten! Kommentare werden bei Excel sichtbar wenn der Cursor auf das entsprechende Feld kommt. Felder mit einem Kommentar haben rechts oben ein rotes Dreieck.
B11: Zuerst werden die Anzahl der Trapeze einer Tragflächenhälfte eingegeben. Es wird die Flächentiefe an der Wurzel und an den Trapezabschnitten benötigt (t) und die Längen der Abschnitte(l). Die zur Anwendung kommenden Profile sind für die Berechnung nicht von Bedeutung, wohl aber die Profildicken. Daher wird die Profildicke zu jeder Flächentiefe in % benötigt. Bitte diese Werte in die Tabelle eingeben. Im Beispiel wird eine Fläche mit fünf Trapezen gezeigt. Hat die zu berechnende Fläche nur zwei oder drei Trapeze, werden die weiteren Felder nicht ausgefüllt (gleich Null setzten).
B19: Tabelle zur Eingabe der Flächengeometrie:
A21: hilfszellen | C21: t in mm | D21: l in mm | E21: Profildicke in %
A22: =D22 -> 0 | B22: t1= | C22: 261 | D22: 0 | E22: 12.56
A23: =A22+D23 -> 750 | B23: t2= | C23: 252.9 | D23: 750 | E23: 11.68
A24: =A23+D24 -> 1500 | B24: t3= | C24: 226.9 | D24: 750 | E24: 10.8
A25: =A24+D25 -> 2250 | B25: t4= | C25: 176.3 | D25: 750 | E25: 9.92
A26: =A25+D26 -> 2826 | B26: t5= | C26: 102.6 | D26: =2826-2250 -> 576 | E26: 9.09
A27: =A26+D27 -> 3000 | B27: t6= | C27: 40 | D27: =3000-2826 -> 174 | E27: 8.1
B29: Der Auftrieb den die Tragfläche produziert, muß von der Konstruktion aufgenommen werden. Dies führt zu einer Biege-, Torsions- und Querkraftbeanspruchung. Der Auftrieb der Tragfläche berechnet sich mit den in den roten Feldern einzugebenden Werten für den maximale Auftriebsbeiwert ca und die maximal zu erwartende Fluggeschwindigkeit (V) in m/s2. Als Standardwerte können hier ca=1,0 und V=40 eingegeben werden.
B32: A= Auftrieb in [ N ]
B33: maximaler Auftriebsbeiwert ca | C33: ca= | D33: 1.2
B34: maximale Fluggeschwindigkeit V | C34: V= | D34: 52 | E34: m/s
B35: Flügelfläche | C35: F= | D35: =2*(((C22+C23)/2*D23)+((C23+C24)/2*D24)+((C24+C25)/2*D25)+((C25+C26)/2*D26)+((C26+C27)/2*D27))/1000000 -> 1.2331338 | E35: m2
B37: Damit erhält man diesen Auftrieb: | C37: A= | D37: =0.6*D33*D34*D34*D35 -> 2400.763533 | E37: N
B39: Das Gesamtgewicht des Modells: | C39: G= | D39: 80 | E39: N
B41: Das Lastvielfache n errechnet sich damit zu: | C41: n= | D41: =D37/D39 -> 30.00954416
B43: Mit diesem Auftrieb errechnet sich folgendes maximale Biegemoment in Rumpfmitte:
B45: Die Spannweite der Tragfläche (b) ist: | C45: b= | D45: =(D22+D23+D24+D25+D26+D27)*2 -> 6000 | E45: mm
B47: Dies ist das maximale Biegemoment: | C47: MB(max)= | D47: =D37/2*D45/4 -> 1800572.649 | E47: Nmm
H49: Abfangradius r= | I49: =D34*D34/(9.81*(D41-1)) -> 9.501600698 | J49: m
B52: Für die Berechnung der örtlichen Beanspruchung, z.B. an einer beliebigen Stelle der Tragfläche, ist ausgehend von diesem bisher berechnetem Mb(max) das Mb an jeder Stelle der Tragfläche folgendermaßen zu berechnen:
B54: Mb(x) = q x X**2 / 2
B55: mit dem maximalen Biegemoment (Mb(max)) erhält man durch Umstellen der Gleichung die örtliche Beanspruchung
B57: q = Mb(max) x 2 / (b/2)**2 | C57: q= | D57: =D47*2/(D45/2)/(D45/2) -> 0.4001272554 | E57: N/mm
B59: Der nächste Punkt ist die Querkraftbeanspruchung des Flächenholms.
B61: Q(max)= q x b/2 | C61: Q(max)= | D61: =D57*(D45/2) -> 1200.381766 | E61: N
B63: Q(x)= q x X | I63: Hier sind die Werte zu sehen die bei der gegenwärtigen Rechnung verwendet werden:
W64: Berechnung des Flächenträgheitsmoments des Holmquerschnitts
B66: An dieser Stelle kann der Roving oder das UD-Gelege für den Holmgurt gewählt werden: | I66: Sigma (zul.) | K66: Querschnitt des Rovings | P66: Flächengewicht bei UD-Gelegen | U66: E-Modul der verwendeten Faser | V66: Tex-Zahl | W66: J=
I68: =VLOOKUP(N68,Gurtmaterialien,6,0) -> 800 | J68: [N/mm2] | K68: =VLOOKUP(N68,Gurtmaterialien,3,0) -> 1.5 | N68: 2 | P68: =VLOOKUP(N68,Gurtmaterialien,12,0) -> 0 | U68: =VLOOKUP(N68,Gurtmaterialien,10,0) -> 80000 | V68: =VLOOKUP(N68,Gurtmaterialien,11,0) -> 1600 | W68: =POWER((-K107*D107*L107/2)-(L107*L107*D107/2),2)+(D107*L107*L107*L107/12)+POWER((K107*D107*L107/2)-(L107*L107*D107/2),2)+(D107*L107*L107*L107/12)+(S107*K107*K107*K107/6) -> 2492574.866
B69: Hier bitte das Material für die Stegbeschichtung wählen:
I70: Tau(zul) | N70: 2
I71: =VLOOKUP(N70,Stegmaterialien,7,0) -> 80 | J71: [N/mm2]
B73: Hier bitte das Material für den Holmsteg wählen:
I74: Tau(zul) Kernmaterial | N74: 3
I75: =VLOOKUP(N74,Kernmaterial,7,0) -> 2.1 | J75: [N/mm2]
B77: Hier bitte die Dicke der Beplankung oder der Schalendicke eingeben falls die Holmgurte darunter liegen und nicht bis zur größten Profildicke gesetzt werden können: | I77: Sigma (druckf.) | N77: =N74 -> 3
B78: Beplankungsdicke: | C78: 1 | D78: mm | I78: =VLOOKUP(N77,Kernmaterial,5,0) -> 12 | J78: [N/mm2]
B103: Eingabe der Stellen (L(x)) in Spannweitenrichtung an der Tragflächenhälfte, an der die Werte ermittelt werden sollen. Es sollen zudem für die Breite des Holms an den jeweiligen Stellen vorläufige Werte eingegeben werden. Die Breite (b) kann dann anschießend sofort verändert werden um Werte zu erhalten, die durch den Materialeinsatz leichter zu realisieren sind.
I104: Berechnung Holmgurt | O104: Berechnung Holmsteg
B105: Erklärungen der Tabellenwerte: | C105: Abstand von der Rumpfmittellinie | D105: Holmbreite an dieser Stelle | E105: Holmbreite mit linear verlauf (nur für entwurf, wird nicht mit gerechnet) | F105: Biegemoment an der Stelle die L(x) angibt | G105: Querkraft an der Stelle die L(x) angibt | H105: Profilhöhe (siehe Skizze) an der Stelle die L(x) angibt | I105: Profilhöhe (siehe Skizze) um die Beplankungs- /Schalendicke reduziert | J105: Das erforderliche Widerstandsmoment | K105: Höhe des Steges zwischen den Holmgurten (siehe Skizze) | L105: Höhe eines Holmgurts (siehe Skizze) | M105: Anzahl der Rovings an der Stelle die L(x) angibt | N105: Rechnung für UD-Gelege: | O105: Querschnittsfläche eines Holmgurts | P105: Scherbeanspruchung des Stegkernes | Q105: Vergleich der Scherbeanspruchung des Steges mit dem gewählten Materialwert (zusätzliche Beschichtung notwendig oder nicht) | R105: Die sich ergebende Querschnittsfläche die durch die Querkraft beansprucht wird | S105: Dicke der Stegbeschichtung (siehe Skizze) ohne Berücksichtigung des verwendeten Holmstegkernmaterials
C106: L(x) in mm | D106: b(x) in mm | F106: Mb(x) in Nmm | G106: Q(x) in N | H106: H in mm | I106: h in mm | J106: Wb(erf) in mm3 | K106: h1 in mm | L106: t in mm | M106: n | N106: Anzahl Lagen | O106: mm³ | P106: Tau(steg) in N/mm2 | R106: F(erf) in mm2 | S106: t1 in mm
B107: Maximalwerte in der Rumpfmitte (L=0) | C107: 0 | D107: 30 | E107: 38.4 | F107: =D57*((D45/2)-C107)*((D45/2)-C107)/2 -> 1800572.649 | G107: =D57*((D45/2)-C107) -> 1200.381766 | H107: =C22*E22/100 -> 32.7816 | I107: =H107-2*C78 -> 30.7816 | J107: =F107/I68 -> 2250.715812 | K107: =POWER((((D107*I107*I107*I107)-(6*I107*J107))/D107),1/3) -> 24.83066986 | L107: =(I107-K107)/2 -> 2.975465071 | M107: =L107*D107/K68 -> 59.50930141 | N107: =ROUNDUP(M107*V$68/D107/P$68,0) ->  | O107: =D107*L107 -> 89.26395212 | P107: =G107/(K107*D107) -> 1.611423525 | Q107: =IF(P107>=I75,"Beschichtung notwendig!","keine Beschichtung") -> keine Beschichtung | R107: =G107/I71 -> 15.00477208 | S107: =R107/(2*K107) -> 0.3021419109 | W107: =C107 -> 0 | Y107: =N107 -> 
B108: Wert an der Tragflächen Wurzelrippe | C108: =D22 -> 0 | D108: 30 | E108: =$E$107-C108/$C$118*($E$107-$E$118) -> 38.4 | F108: =D57*((D45/2)-C108)*((D45/2)-C108)/2 -> 1800572.649 | G108: =D57*((D45/2)-C108) -> 1200.381766 | H108: =C22*E22/100 -> 32.7816 | I108: =H108-2*C78 -> 30.7816 | J108: =F108/I68 -> 2250.715812 | K108: 24.83066986 | L108: 2.975465071 | M108: =L108*D108/K68 -> 59.50930141 | O108: 89.26395212 | P108: 1.611423525 | Q108: =IF(P108>I75,"Beschichtung notwendig!","keine Beschichtung") -> keine Beschichtung | R108: =G108/I71 -> 15.00477208 | S108: 0.3021419109 | W108: =C108 -> 0 | Y108: =N107 -> 
B109: Ein Zwischenwert (beliebig einzugeben) | C109: 375 | D109: 29 | E109: =$E$107-C109/$C$118*($E$107-$E$118) -> 34.6 | F109: =D57*((D45/2)-C109)*((D45/2)-C109)/2 -> 1378563.435 | G109: =D57*((D45/2)-C109) -> 1050.334045 | H109: =((H108-H110)*(C109-C110)/(C108-C110))+H110 -> 31.16016 | I109: =H109-2*C78 -> 29.16016 | J109: =F109/I68 -> 1723.204293 | K109: 24.32824066 | L109: 2.415959672 | M109: =L109*D109/K68 -> 46.70855367 | O109: 70.0628305 | P109: 1.488739604 | Q109: =IF(P109>I75,"Beschichtung notwendig!","keine Beschichtung") -> keine Beschichtung | R109: =G109/I71 -> 13.12917557 | S109: 0.2698340532 | W109: =C108 -> 0 | Y109: =N108 -> 
B110: Werte z.B. am Ende des ersten Tragflächentrapezes | C110: =D22+D23 -> 750 | D110: 28 | E110: 30.8 | F110: =D57*((D45/2)-C110)*((D45/2)-C110)/2 -> 1012822.115 | G110: =D57*((D45/2)-C110) -> 900.2863247 | H110: =C23*E23/100 -> 29.53872 | I110: =H110-2*C78 -> 27.53872 | J110: =F110/I68 -> 1266.027644 | K110: 23.76024026 | L110: 1.88923987 | M110: =L110*D110/K68 -> 35.26581091 | O110: 52.89871636 | P110: 1.353230551 | Q110: =IF(P110>I75,"Beschichtung notwendig!","keine Beschichtung") -> keine Beschichtung | R110: =G110/I71 -> 11.25357906 | S110: 0.2368153465 | W110: =C109 -> 375 | Y110: =N108 -> 
B111: Ein Zwischenwert (beliebig einzugeben) | C111: 1125 | D111: 27 | E111: 27 | F111: =D57*((D45/2)-C111)*((D45/2)-C111)/2 -> 703348.6912 | G111: =D57*((D45/2)-C111) -> 750.2386039 | H111: =((H110-H112)*(C111-C112)/(C110-C112))+H112 -> 27.02196 | I111: =H111-2*C78 -> 25.02196 | J111: =F111/I68 -> 879.185864 | K111: 22.08886565 | L111: 1.466547173 | M111: =L111*D111/K68 -> 26.39784911 | O111: 39.59677367 | P111: 1.257946668 | Q111: =IF(P111>I75,"Beschichtung notwendig!","keine Beschichtung") -> keine Beschichtung | R111: =G111/I71 -> 9.377982549 | S111: 0.2122785003 | W111: =C109 -> 375 | Y111: =N109 -> 
B112: Wert z.B. am Ende des zweiten Trapezes | C112: =D22+D23+D24 -> 1500 | D112: 23.2 | E112: 23.2 | F112: =D57*((D45/2)-C112)*((D45/2)-C112)/2 -> 450143.1624 | G112: =D57*((D45/2)-C112) -> 600.1908831 | H112: =C24*E24/100 -> 24.5052 | I112: =H112-2*C78 -> 22.5052 | J112: =F112/I68 -> 562.6789529 | K112: 20.10243957 | L112: 1.201380213 | M112: =L112*D112/K68 -> 18.5813473 | O112: 27.87202095 | P112: 1.286923241 | Q112: =IF(P112>I75,"Beschichtung notwendig!","keine Beschichtung") -> keine Beschichtung | R112: =G112/I71 -> 7.502386039 | S112: 0.1866038699 | W112: =C110 -> 750 | Y112: =N109 -> 
B113: Ein Zwischenwert (beliebig einzugeben) | C113: 1875 | D113: 19.4 | E113: 19.4 | F113: =D57*((D45/2)-C113)*((D45/2)-C113)/2 -> 253205.5288 | G113: =D57*((D45/2)-C113) -> 450.1431624 | H113: =((H112-H114)*(C113-C114)/(C112-C114))+H114 -> 20.99708 | I113: =H113-2*C78 -> 18.99708 | J113: =F113/I68 -> 316.506911 | K113: 17.09546976 | L113: 0.9508051207 | M113: =L113*D113/K68 -> 12.29707956 | O113: 18.44561934 | P113: 1.357275121 | Q113: =IF(P113>I75,"Beschichtung notwendig!","keine Beschichtung") -> keine Beschichtung | R113: =G113/I71 -> 5.626789529 | S113: 0.1645696085 | W113: =C110 -> 750 | Y113: =N110 -> 
B114: Wert z.B. am Ende des dritten Trapezes | C114: =D22+D23+D24+D25 -> 2250 | D114: 15.6 | E114: 15.6 | F114: =D57*((D45/2)-C114)*((D45/2)-C114)/2 -> 112535.7906 | G114: =D57*((D45/2)-C114) -> 300.0954416 | H114: =C25*E25/100 -> 17.48896 | I114: =H114-2*C78 -> 15.48896 | J114: =F114/I68 -> 140.6697382 | K114: 14.22413543 | L114: 0.6324122826 | M114: =L114*D114/K68 -> 6.577087739 | O114: 9.865631608 | P114: 1.352411707 | Q114: =IF(P114>I75,"Beschichtung notwendig!","keine Beschichtung") -> keine Beschichtung | R114: =G114/I71 -> 3.75119302 | S114: 0.1318601414 | W114: =C111 -> 1125 | Y114: =N110 -> 
B115: Ein Zwischenwert (beliebig einzugeben) | C115: 2587 | D115: 12.2 | E115: 12.18506667 | F115: =D57*((D45/2)-C115)*((D45/2)-C115)/2 -> 34124.65292 | G115: =D57*((D45/2)-C115) -> 165.2525565 | H115: =((H114-H116)*(C115-C116)/(C114-C116))+H116 -> 12.71326045 | I115: =H115-2*C78 -> 10.71326045 | J115: =F115/I68 -> 42.65581614 | K115: 10.01616566 | L115: 0.3485473972 | M115: =L115*D115/K68 -> 2.834852164 | O115: 4.252278246 | P115: 1.352343 | Q115: =IF(P115>I75,"Beschichtung notwendig!","keine Beschichtung") -> keine Beschichtung | R115: =G115/I71 -> 2.065656956 | S115: 0.1031161538 | W115: =C111 -> 1125 | Y115: =N111 -> 
B116: Wert z.B. am Ende des vierten Trapezes (falls vorhanden) | C116: =D22+D23+D24+D25+D26 -> 2826 | D116: 9.8 | E116: 9.7632 | F116: =D57*((D45/2)-C116)*((D45/2)-C116)/2 -> 6057.126393 | G116: =D57*((D45/2)-C116) -> 69.62214244 | H116: =C26*E26/100 -> 9.32634 | I116: =H116-2*C78 -> 7.32634 | J116: =F116/I68 -> 7.571407991 | K116: 7.109051007 | L116: 0.1086444963 | M116: =L116*D116/K68 -> 0.7098107094 | O116: 1.064716064 | P116: 0.9993317311 | Q116: =IF(P116>I75,"Beschichtung notwendig!","keine Beschichtung") -> keine Beschichtung | R116: =G116/I71 -> 0.8702767805 | S116: 0.06120906853 | W116: =C112 -> 1500 | Y116: =N111 -> 
B117: Ein Zwischenwert (beliebig einzugeben) | C117: 2961 | D117: 8.4 | E117: 8.3952 | F117: =D57*((D45/2)-C117)*((D45/2)-C117)/2 -> 304.2967777 | G117: =D57*((D45/2)-C117) -> 15.60496296 | H117: =((H116-H118)*(C117-C118)/(C116-C118))+H118 -> 4.604179655 | I117: =H117-2*I80 -> 4.604179655 | J117: =F117/I68 -> 0.3803709722 | K117: 4.584424951 | L117: 0.009877352124 | M117: =L117*D117/K68 -> 0.0553131719 | O117: 0.08296975784 | P117: 0.4052271999 | Q117: =IF(P117>I75,"Beschichtung notwendig!","keine Beschichtung") -> keine Beschichtung | R117: =G117/I71 -> 0.195062037 | S117: 0.02127442799 | W117: =C112 -> 1500 | Y117: =N112 -> 
B118: Wert z.B. am Ende des fünften Trapezes (falls vorhanden) | C118: =D22+D23+D24+D25+D26+D27+D28 -> 3000 | D118: 8 | E118: 8 | F118: =D57*((D45/2)-C118)*((D45/2)-C118)/2 -> 0 | G118: =D57*((D45/2)-C118) -> 0 | H118: =C27*E27/100 -> 3.24 | I118: =H118-2*I80 -> 3.24 | J118: =F118/I68 -> 0 | K118: 3.24 | L118: 0 | M118: =L118*D118/K68 -> 0 | O118: 0 | P118: 0 | Q118: =IF(P118>I75,"Beschichtung notwendig!","keine Beschichtung") -> keine Beschichtung | R118: =G118/I71 -> 0 | S118: 0 | W118: =C113 -> 1875 | Y118: =N112 -> 
V119: =C113 -> 1875 | X119: =N113 -> 
V120: =C114 -> 2250 | X120: =N113 -> 
B121: Durchbiegung am Flächenende: | V121: =C114 -> 2250 | X121: =N114 -> 
B122: W® = 1/2 x M(max) x b/2 x b/2 / E-Modul(Holmgurt) / J | V122: =C115 -> 2587 | X122: =N114 -> 
B123: W®= | C123: =1/2*F107*(D45/2*D45/2)/U68/W68 -> 40.6335685 | D123: mm | V123: =C115 -> 2587 | X123: =N115 -> 
V124: =C116 -> 2826 | X124: =N115 -> 
V125: =C116 -> 2826 | X125: =N116 -> 
V126: =C117 -> 2961 | X126: =N116 -> 
V127: =C117 -> 2961 | X127: =N117 -> 
V128: =C118 -> 3000 | X128: =N117 -> 
V129: =C118 -> 3000 | X129: =N118 -> 

Sheet Materialdaten
A1: Materialkennzahlen
A3: Materialien | D3: Spezifikation | E3: Querschitts-flächen [mm²] | F3: Biegefestigkeit Sigma (zul) [N/mm²] | G3: Druckfestig-keit [N/mm²] | H3: Zugfestigkeit [N/mm²] | I3: Schubfestig-keit Tau(zul) [N/mm²] | J3: Bruch-dehnung [%] | K3: Dichte [kg/m³] | L3: Elastizitäts-modul [N/mm² ] | M3: Garnfeinheit in tex | N3: Flächengewicht des UD-Geleges | O3: Faser des UD-Geleges
A4: Gurtmaterialien | B4: C Rovings HTA12k | C4: 1 | D4: CFK | E4: 0.8 | F4: 1000 | H4: 800 | J4: 1 | K4: 1800 | L4: 80000 | M4: 800
B5: C Rovings HTA 24k | C5: 2 | D5: CFK | E5: 1.5 | F5: 1000 | H5: 800 | J5: 1 | K5: 1800 | L5: 80000 | M5: 1600
B6: C Rovings C60 | C6: 3 | D6: CFK | E6: 2.5 | H6: 700 | J6: 1 | L6: 80000
B7: Aramid Rovings | C7: 4 | D7: AFK | G7: 35 | H7: 192 | J7: 3.3 | K7: 1450 | L7: 48000
B8: GfK Rovings 1,0mm² | C8: 5 | D8: GFK | E8: 1 | H8: 750 | I8: 30 | J8: 2.5 | K8: 2500 | L8: 30000
B9: GfK Rovings 2,0mm² | C9: 6 | D9: GFK | E9: 2 | H9: 750 | I9: 30 | J9: 2.5 | K9: 2500 | L9: 30000
B10: Polystahl | C10: 7 | D10: GFK-Ex | E10: 5.7 | H10: 750 | J10: 2.5 | K10: 2100 | L10: 50000
B11: Kiefernholz | C11: 8 | D11: längs | F11: 65 | G11: 40 | H11: 70 | I11: 5 | J11: 0.7 | K11: 570 | L11: 10000
B12: UD-CST50/300 | C12: 9 | D12: CFK-UD-Gelege | E12: 0.8 | H12: 800 | J12: 1 | L12: 135000 | M12: 800 | N12: 50 | O12: AS4
B13: UD-CST80/200 | C13: 10 | D13: CFK-UD-Gelege | E13: 0.8 | H13: 800 | J13: 1 | L13: 135000 | M13: 800 | N13: 80 | O13: T700
B14: UD-CST100/300 | C14: 11 | D14: CFK-UD-Gelege | E14: 0.8 | H14: 800 | J14: 1 | L14: 135000 | M14: 800 | N14: 100 | O14: T700
B15: UD-CST125/300 | C15: 12 | D15: CFK-UD-Gelege | E15: 0.8 | H15: 800 | J15: 1 | L15: 135000 | M15: 800 | N15: 125 | O15: T700
B16: UD-CST150/300 | C16: 13 | D16: CFK-UD-Gelege | E16: 0.8 | H16: 800 | J16: 1 | L16: 135000 | M16: 800 | N16: 150 | O16: T700
B17: UD-CST200/300 | C17: 14 | D17: CFK-UD-Gelege | E17: 0.8 | H17: 800 | J17: 1 | L17: 135000 | M17: 800 | N17: 200 | O17: T700
B18: UD-CS250/244 | C18: 15 | D18: CFK-UD-Gelege | E18: 0.8 | H18: 800 | J18: 0.4 | L18: 230000 | M18: 800 | N18: 250 | O18: UHM K63712 | P18: Faser von Sumitomo, Dichte 2,12, Zugfestigkeit 2600MPa, Zug E-Modul 640GPa, Bruchdehnung 0,4%
B19: UD-CST300/50 | C19: 16 | D19: CFK-UD-Gelege | E19: 0.8 | H19: 800 | J19: 1 | L19: 135000 | M19: 800 | N19: 300 | O19: T700
A20: Stegmaterialien | B20: AFK (Aramid-)gewebe | C20: 1 | J20: 2.5 | L20: 24000
B21: GFK Gewebe | C21: 2 | G21: 90 | H21: 90 | I21: 80 | J21: 3.5 | L21: 15000
B22: CFK Gewebe | C22: 3 | G22: 200 | H22: 200 | I22: 90 | J22: 1.3 | L22: 40000
A23: Kernmaterial | B23: Abachi längs | C23: 1 | D23: längs | F23: 47 | G23: 30 | K23: 400 | L23: 6000
B24: Balsaholz längs* | C24: 2 | D24: längs | F24: 21 | G24: 6 | H24: 12.3 | I24: 1.2 | J24: 0.7 | K24: 150 | L24: 3290
B25: Balsaholz quer | C25: 3 | D25: quer | G25: 12 | H25: 0.7 | I25: 2.1 | K25: 150
B26: Kiefernholz längs | C26: 4 | D26: längs | F26: 65 | G26: 7.7 | H26: 70 | I26: 5 | J26: 0.7 | K26: 570 | L26: 10000
B27: Kiefernholz quer | C27: 5 | D27: quer | G27: 40 | H27: 3 | I27: 10 | K27: 570 | L27: 500
B28: Buchenholz längs | C28: 6 | D28: längs | F28: 105 | G28: 53 | H28: 135 | K28: 780 | L28: 16000
B29: Buchenholz quer | C29: 7 | D29: quer | G29: 53 | H29: 7 | K29: 780 | L29: 1500
B30: Pappelholz längs | C30: 8 | D30: längs | F30: 55 | G30: 12 | H30: 75 | K30: 450 | L30: 9000
B31: Pappelholz quer | C31: 9 | D31: quer | G31: 37 | H31: 10 | K31: 450 | L31: 350
B32: Birkensperrholz | C32: 10 | F32: 80 | G32: 52 | H32: 132 | I32: 20 | J32: 1 | K32: 650 | L32: 8000
B33: Buchensperrholz | C33: 11 | F33: 80 | G33: 56 | H33: 117 | I33: 20 | K33: 725 | L33: 10000
B34: Rohacell 31 | C34: 12 | F34: 0.8 | G34: 0.4 | H34: 1 | I34: 0.4 | J34: 3.5 | K34: 30 | L34: 36
B35: Rohacell 51 | C35: 13 | F35: 1.6 | G35: 0.9 | H35: 1.9 | I35: 0.8 | J35: 4 | K35: 50 | L35: 70
B36: Rohacell 71 | C36: 14 | F36: 2.5 | G36: 1.5 | H36: 2.8 | I36: 1.3 | J36: 4.5 | K36: 70 | L36: 92
B37: Styropor PS20 | C37: 15 | D37: PS20 | G37: 0.3 | K37: 20
B38: Styropor PS30 | C38: 16 | D38: PS30 | G38: 0.5 | K38: 30
B39: Roofmate | C39: 17 | G39: 0.3 | K39: 32
B40: PVC Hartschaum 30 | C40: 18 | D40: 30 | F40: 0.45 | G40: 0.25 | H40: 0.45 | I40: 1.2 | K40: 30
B41: PVC Hartschaum 40 | C41: 19 | D41: 40 | F41: 0.6 | G41: 0.35 | H41: 0.7 | I41: 2.1 | K41: 40
B42: PVC Hartschaum 60 | C42: 20 | D42: 60 | F42: 1.2 | G42: 0.8 | H42: 1.6 | I42: 2.8 | K42: 60
B43: PVC Hartschaum 80 | C43: 21 | D43: 80 | F43: 1.8 | G43: 1.2 | H43: 2 | I43: 3.8 | K43: 80
B44: Titan | D44: 99.5 | H44: 200 | I44: 250 | J44: 30 | L44: 110000
B45: Aluminium | D45: Al-Mg 2,5 | H45: 170 | I45: 140 | J45: 3 | K45: 2700 | L45: 71000
B46: Stahl | H46: 1200 | K46: 7850 | L46: 210000
B47: Stahldraht | F47: 500 | G47: 350 | K47: 7850 | L47: 210000
B48: *für eine Rohdichte von 150kg/m3
B49: längs bedeutet, dass der Faserverlauf des Holzes in Spannweitenrichtung verläuft
B50: quer bedeutet, dass der Faserverlauf des Holzes von Holmgurt zu Holmgurt verläuft
A52: Festigkeit von Klebe-Verbindungen | B52: Material | D52: Schubfestigkeit Tau N/mm2
B53: Holz/Holz | D53: 3.5
B54: GFK/Holz | D54: 3.5
B55: GFK/GFK | D55: 5
F59: Faser | G59: Faserdurchmesser in mm | H59: Faserquerschnitt in mm^2 | I59: Fläche 24k | J59: 60% Faservolumen | K59: Für die Anzahlberechnung zu verwenden
A60: 12k = 12000 filaments = 800 tex, have a cross section of 0.7mm² | F60: T300 | G60: 0.007 | H60: 0,38485 x 10^-4 | I60: 0.924 | J60: =I60 * 100/60 -> 1.54 | K60: 1.5
A61: 24k = 24000 filaments = 1600 tex, have a cross section of 1.5mm² | F61: T800 | G61: 0.005 | H61: 0,19635 x 10^-4 | I61: 0.471 | J61: =I61*100/60 -> 0.785 | K61: 0.8
A62: 36k = 36000 filaments = 2400 tex, have a cross section of 2.1mm² | F62: MR60H24P | G62: 0.005 | H62: 0,19635 x 10^-4 | I62: 0.471 | J62: 0.785 | K62: 0.8
B84: Quelle: Toray

Sheet Flächensteckung
A1: Berechnung einer Flächensteckverbindung
A3: Mit den Werten der Holmberechnung ist es möglich, an den Knickstellen der Tragfläche, den nötigen Querschnitt einer Tragflächensteckung zu bestimmen. Hierzu wird das Mb(x) dieser Stelle aus der Tabelle der Ergebnisse eingesetzt. Die Ergebnisse in der unten aufgeführten Tabelle ergeben sich daher automatisch mit den Ergebnissen aus 'Berechnung der Werte'.
A4: Für den rechteckigen Querschnitt wird verwendet:
A5: Breite des Stabes wird berechnet und mit b4 - | B5: 1.5 | E5: , mm anschließend verglichen, Höhe ist h1 - | F5: =B5 -> 1.5 | G5: mm. Diese werden für den Platzbedarf einer Hülle um den Stab abgezogen.
A7: b= Mb(Verbindungspunkt) x 6 / Sigma (Material) x (Steghöhe h1 - 3mm)**2
A9: Für den runden Vollquerschnitt wird verwendet:
A11: D=3.Wurzel (((Mb(Verbindungspunkt))/(Sigma(Material)*0,1))
D13: Steckverbindung mit rechteckigem Querschnitt | M13: Steckverbindung mit rundem Querschnitt
A14: Erklärungen der Tabellenwerte: | B14: Abstand von der Rumpf-mittellinie | C14: Holmbreite an dieser Stelle | D14: Aus CFK | G14: Aus GFK | J14: Aus Stahl | M14: Aus CFK | O14: Aus GFK | Q14: Aus Stahl
B15: L(x) in mm | C15: b(x) in mm | D15: Berechnete Mindeststabbreite in mm (B) | E15: maximal mögliche Stabbreite mit gewählten Holmstegbreite in mm (B) | F15: Stabhöhe in der Rechnung in mm (H) | G15: Berechnete Mindeststabbreite in mm | H15: maximal mögliche Stabbreite aufgrund der gewählten Holmstegbreite in mm | I15: Stabhöhe in der Rechnung in mm | J15: Berechnete Mindeststabbreite in mm | K15: maximal mögliche Stabbreite aufgrund der gewählten Holmstegbreite in mm | L15: Stabhöhe in der Rechnung in mm | M15: Berechneter Mindestdurchmesser in mm | N15: maximal möglicher Durchmesser aufgrund der gewählten Holmstegbreite in mm | O15: Berechneter Mindestdurchmesser in mm | P15: maximal möglicher Durchmesser aufgrund der gewählten Holmstegbreite in mm | Q15: Berechneter Mindestdurchmesser in mm | R15: maximal möglicher Durchmesser aufgrund der gewählten Holmstegbreite in mm
A16: Maximalwerte in der Rumpfmitte (L=0) | B16: 0 | C16: ='Berechnung der Werte'!D107 -> 30 | D16: =('Berechnung der Werte'!F107*6)/(Materialdaten!$H$5*('Berechnung der Werte'!K107-$B$5)*('Berechnung der Werte'!K107-$B$5)) -> 24.80947053 | E16: ='Berechnung der Werte'!D107-$B$5 -> 28.5 | F16: ='Berechnung der Werte'!K107-$B$5 -> 23.33066986 | G16: =('Berechnung der Werte'!F107*6)/(Materialdaten!$H$8*('Berechnung der Werte'!K107-$B$5)*('Berechnung der Werte'!K107-$B$5)) -> 26.46343523 | H16: ='Berechnung der Werte'!D107-$B$5 -> 28.5 | I16: ='Berechnung der Werte'!K107-$B$5 -> 23.33066986 | J16: =('Berechnung der Werte'!F107*6)/(Materialdaten!$H$46*('Berechnung der Werte'!K107-$B$5)*('Berechnung der Werte'!K107-$B$5)) -> 16.53964702 | K16: ='Berechnung der Werte'!D107-$B$5 -> 28.5 | L16: ='Berechnung der Werte'!K107-$B$5 -> 23.33066986 | M16: =(('Berechnung der Werte'!F107/(Materialdaten!$H$5*0.1)))^(1/3) -> 28.23407435 | N16: ='Berechnung der Werte'!D107-$B$5 -> 28.5 | O16: =(('Berechnung der Werte'!F107/(Materialdaten!$H$8*0.1)))^(1/3) -> 28.84804998 | P16: ='Berechnung der Werte'!D107-$B$5 -> 28.5 | Q16: =(('Berechnung der Werte'!F107/(Materialdaten!$H$46*0.1)))^(1/3) -> 24.66473579 | R16: ='Berechnung der Werte'!D107-$B$5 -> 28.5
A17: Wert an der Tragflächen Wurzelrippe | B17: ='Berechnung der Werte'!C108 -> 0 | C17: ='Berechnung der Werte'!D108 -> 30 | D17: =('Berechnung der Werte'!F108*6)/(Materialdaten!$H$5*('Berechnung der Werte'!K108-$B$5)*('Berechnung der Werte'!K108-$B$5)) -> 24.80947053 | E17: ='Berechnung der Werte'!D108-$B$5 -> 28.5 | F17: ='Berechnung der Werte'!K108-$B$5 -> 23.33066986 | G17: =('Berechnung der Werte'!F108*6)/(Materialdaten!$H$8*('Berechnung der Werte'!K108-$B$5)*('Berechnung der Werte'!K108-$B$5)) -> 26.46343523 | H17: ='Berechnung der Werte'!D108-$B$5 -> 28.5 | I17: ='Berechnung der Werte'!K108-$B$5 -> 23.33066986 | J17: =('Berechnung der Werte'!F108*6)/(Materialdaten!$H$46*('Berechnung der Werte'!K108-$B$5)*('Berechnung der Werte'!K108-$B$5)) -> 16.53964702 | K17: ='Berechnung der Werte'!D108-$B$5 -> 28.5 | L17: ='Berechnung der Werte'!K108-$B$5 -> 23.33066986 | M17: =(('Berechnung der Werte'!F108/(Materialdaten!$H$5*0.1)))^(1/3) -> 28.23407435 | N17: ='Berechnung der Werte'!D108-$B$5 -> 28.5 | O17: =(('Berechnung der Werte'!F108/(Materialdaten!$H$8*0.1)))^(1/3) -> 28.84804998 | P17: ='Berechnung der Werte'!D108-$B$5 -> 28.5 | Q17: =(('Berechnung der Werte'!F108/(Materialdaten!$H$46*0.1)))^(1/3) -> 24.66473579 | R17: ='Berechnung der Werte'!D108-$B$5 -> 28.5
A18: Ein Zwischenwert (beliebig einzugeben) | B18: ='Berechnung der Werte'!C109 -> 375 | C18: ='Berechnung der Werte'!D109 -> 29 | D18: =('Berechnung der Werte'!F109*6)/(Materialdaten!$H$5*('Berechnung der Werte'!K109-$B$5)*('Berechnung der Werte'!K109-$B$5)) -> 19.84006698 | E18: ='Berechnung der Werte'!D109-$B$5 -> 27.5 | F18: ='Berechnung der Werte'!K109-$B$5 -> 22.82824066 | G18: =('Berechnung der Werte'!F109*6)/(Materialdaten!$H$8*('Berechnung der Werte'!K109-$B$5)*('Berechnung der Werte'!K109-$B$5)) -> 21.16273811 | H18: ='Berechnung der Werte'!D109-$B$5 -> 27.5 | I18: ='Berechnung der Werte'!K109-$B$5 -> 22.82824066 | J18: =('Berechnung der Werte'!F109*6)/(Materialdaten!$H$46*('Berechnung der Werte'!K109-$B$5)*('Berechnung der Werte'!K109-$B$5)) -> 13.22671132 | K18: ='Berechnung der Werte'!D109-$B$5 -> 27.5 | L18: ='Berechnung der Werte'!K109-$B$5 -> 22.82824066 | M18: =(('Berechnung der Werte'!F109/(Materialdaten!$H$5*0.1)))^(1/3) -> 25.82927737 | N18: ='Berechnung der Werte'!D109-$B$5 -> 27.5 | O18: =(('Berechnung der Werte'!F109/(Materialdaten!$H$8*0.1)))^(1/3) -> 26.39095851 | P18: ='Berechnung der Werte'!D109-$B$5 -> 27.5 | Q18: =(('Berechnung der Werte'!F109/(Materialdaten!$H$46*0.1)))^(1/3) -> 22.56395213 | R18: ='Berechnung der Werte'!D109-$B$5 -> 27.5
A19: Werte z.B. am Ende des ersten Tragflächentrapezes | B19: ='Berechnung der Werte'!C110 -> 750 | C19: ='Berechnung der Werte'!D110 -> 28 | D19: =('Berechnung der Werte'!F110*6)/(Materialdaten!$H$5*('Berechnung der Werte'!K110-$B$5)*('Berechnung der Werte'!K110-$B$5)) -> 15.32973842 | E19: ='Berechnung der Werte'!D110-$B$5 -> 26.5 | F19: ='Berechnung der Werte'!K110-$B$5 -> 22.26024026 | G19: =('Berechnung der Werte'!F110*6)/(Materialdaten!$H$8*('Berechnung der Werte'!K110-$B$5)*('Berechnung der Werte'!K110-$B$5)) -> 16.35172098 | H19: ='Berechnung der Werte'!D110-$B$5 -> 26.5 | I19: ='Berechnung der Werte'!K110-$B$5 -> 22.26024026 | J19: =('Berechnung der Werte'!F110*6)/(Materialdaten!$H$46*('Berechnung der Werte'!K110-$B$5)*('Berechnung der Werte'!K110-$B$5)) -> 10.21982561 | K19: ='Berechnung der Werte'!D110-$B$5 -> 26.5 | L19: ='Berechnung der Werte'!K110-$B$5 -> 22.26024026 | M19: =(('Berechnung der Werte'!F110/(Materialdaten!$H$5*0.1)))^(1/3) -> 23.30671486 | N19: ='Berechnung der Werte'!D110-$B$5 -> 26.5 | O19: =(('Berechnung der Werte'!F110/(Materialdaten!$H$8*0.1)))^(1/3) -> 23.81354058 | P19: ='Berechnung der Werte'!D110-$B$5 -> 26.5 | Q19: =(('Berechnung der Werte'!F110/(Materialdaten!$H$46*0.1)))^(1/3) -> 20.3602908 | R19: ='Berechnung der Werte'!D110-$B$5 -> 26.5
A20: Ein Zwischenwert (beliebig einzugeben) | B20: ='Berechnung der Werte'!C111 -> 1125 | C20: ='Berechnung der Werte'!D111 -> 27 | D20: =('Berechnung der Werte'!F111*6)/(Materialdaten!$H$5*('Berechnung der Werte'!K111-$B$5)*('Berechnung der Werte'!K111-$B$5)) -> 12.44420358 | E20: ='Berechnung der Werte'!D111-$B$5 -> 25.5 | F20: ='Berechnung der Werte'!K111-$B$5 -> 20.58886565 | G20: =('Berechnung der Werte'!F111*6)/(Materialdaten!$H$8*('Berechnung der Werte'!K111-$B$5)*('Berechnung der Werte'!K111-$B$5)) -> 13.27381716 | H20: ='Berechnung der Werte'!D111-$B$5 -> 25.5 | I20: ='Berechnung der Werte'!K111-$B$5 -> 20.58886565 | J20: =('Berechnung der Werte'!F111*6)/(Materialdaten!$H$46*('Berechnung der Werte'!K111-$B$5)*('Berechnung der Werte'!K111-$B$5)) -> 8.296135723 | K20: ='Berechnung der Werte'!D111-$B$5 -> 25.5 | L20: ='Berechnung der Werte'!K111-$B$5 -> 20.58886565 | M20: =(('Berechnung der Werte'!F111/(Materialdaten!$H$5*0.1)))^(1/3) -> 20.63923355 | N20: ='Berechnung der Werte'!D111-$B$5 -> 25.5 | O20: =(('Berechnung der Werte'!F111/(Materialdaten!$H$8*0.1)))^(1/3) -> 21.08805247 | P20: ='Berechnung der Werte'!D111-$B$5 -> 25.5 | Q20: =(('Berechnung der Werte'!F111/(Materialdaten!$H$46*0.1)))^(1/3) -> 18.03003124 | R20: ='Berechnung der Werte'!D111-$B$5 -> 25.5
A21: Wert z.B. am Ende des zweiten Trapezes | B21: ='Berechnung der Werte'!C112 -> 1500 | C21: ='Berechnung der Werte'!D112 -> 23.2 | D21: =('Berechnung der Werte'!F112*6)/(Materialdaten!$H$5*('Berechnung der Werte'!K112-$B$5)*('Berechnung der Werte'!K112-$B$5)) -> 9.756007288 | E21: ='Berechnung der Werte'!D112-$B$5 -> 21.7 | F21: ='Berechnung der Werte'!K112-$B$5 -> 18.60243957 | G21: =('Berechnung der Werte'!F112*6)/(Materialdaten!$H$8*('Berechnung der Werte'!K112-$B$5)*('Berechnung der Werte'!K112-$B$5)) -> 10.40640777 | H21: ='Berechnung der Werte'!D112-$B$5 -> 21.7 | I21: ='Berechnung der Werte'!K112-$B$5 -> 18.60243957 | J21: =('Berechnung der Werte'!F112*6)/(Materialdaten!$H$46*('Berechnung der Werte'!K112-$B$5)*('Berechnung der Werte'!K112-$B$5)) -> 6.504004858 | K21: ='Berechnung der Werte'!D112-$B$5 -> 21.7 | L21: ='Berechnung der Werte'!K112-$B$5 -> 18.60243957 | M21: =(('Berechnung der Werte'!F112/(Materialdaten!$H$5*0.1)))^(1/3) -> 17.7863523 | N21: ='Berechnung der Werte'!D112-$B$5 -> 21.7 | O21: =(('Berechnung der Werte'!F112/(Materialdaten!$H$8*0.1)))^(1/3) -> 18.17313271 | P21: ='Berechnung der Werte'!D112-$B$5 -> 21.7 | Q21: =(('Berechnung der Werte'!F112/(Materialdaten!$H$46*0.1)))^(1/3) -> 15.53780991 | R21: ='Berechnung der Werte'!D112-$B$5 -> 21.7
A22: Ein Zwischenwert (beliebig einzugeben) | B22: ='Berechnung der Werte'!C113 -> 1875 | C22: ='Berechnung der Werte'!D113 -> 19.4 | D22: =('Berechnung der Werte'!F113*6)/(Materialdaten!$H$5*('Berechnung der Werte'!K113-$B$5)*('Berechnung der Werte'!K113-$B$5)) -> 7.807959034 | E22: ='Berechnung der Werte'!D113-$B$5 -> 17.9 | F22: ='Berechnung der Werte'!K113-$B$5 -> 15.59546976 | G22: =('Berechnung der Werte'!F113*6)/(Materialdaten!$H$8*('Berechnung der Werte'!K113-$B$5)*('Berechnung der Werte'!K113-$B$5)) -> 8.328489636 | H22: ='Berechnung der Werte'!D113-$B$5 -> 17.9 | I22: ='Berechnung der Werte'!K113-$B$5 -> 15.59546976 | J22: =('Berechnung der Werte'!F113*6)/(Materialdaten!$H$46*('Berechnung der Werte'!K113-$B$5)*('Berechnung der Werte'!K113-$B$5)) -> 5.205306022 | K22: ='Berechnung der Werte'!D113-$B$5 -> 17.9 | L22: ='Berechnung der Werte'!K113-$B$5 -> 15.59546976 | M22: =(('Berechnung der Werte'!F113/(Materialdaten!$H$5*0.1)))^(1/3) -> 14.68231033 | N22: ='Berechnung der Werte'!D113-$B$5 -> 17.9 | O22: =(('Berechnung der Werte'!F113/(Materialdaten!$H$8*0.1)))^(1/3) -> 15.00159052 | P22: ='Berechnung der Werte'!D113-$B$5 -> 17.9 | Q22: =(('Berechnung der Werte'!F113/(Materialdaten!$H$46*0.1)))^(1/3) -> 12.82617948 | R22: ='Berechnung der Werte'!D113-$B$5 -> 17.9
A23: Wert z.B. am Ende des dritten Trapezes | B23: ='Berechnung der Werte'!C114 -> 2250 | C23: ='Berechnung der Werte'!D114 -> 15.6 | D23: =('Berechnung der Werte'!F114*6)/(Materialdaten!$H$5*('Berechnung der Werte'!K114-$B$5)*('Berechnung der Werte'!K114-$B$5)) -> 5.21309169 | E23: ='Berechnung der Werte'!D114-$B$5 -> 14.1 | F23: ='Berechnung der Werte'!K114-$B$5 -> 12.72413543 | G23: =('Berechnung der Werte'!F114*6)/(Materialdaten!$H$8*('Berechnung der Werte'!K114-$B$5)*('Berechnung der Werte'!K114-$B$5)) -> 5.560631136 | H23: ='Berechnung der Werte'!D114-$B$5 -> 14.1 | I23: ='Berechnung der Werte'!K114-$B$5 -> 12.72413543 | J23: =('Berechnung der Werte'!F114*6)/(Materialdaten!$H$46*('Berechnung der Werte'!K114-$B$5)*('Berechnung der Werte'!K114-$B$5)) -> 3.47539446 | K23: ='Berechnung der Werte'!D114-$B$5 -> 14.1 | L23: ='Berechnung der Werte'!K114-$B$5 -> 12.72413543 | M23: =(('Berechnung der Werte'!F114/(Materialdaten!$H$5*0.1)))^(1/3) -> 11.20469983 | N23: ='Berechnung der Werte'!D114-$B$5 -> 14.1 | O23: =(('Berechnung der Werte'!F114/(Materialdaten!$H$8*0.1)))^(1/3) -> 11.44835622 | P23: ='Berechnung der Werte'!D114-$B$5 -> 14.1 | Q23: =(('Berechnung der Werte'!F114/(Materialdaten!$H$46*0.1)))^(1/3) -> 9.788206885 | R23: ='Berechnung der Werte'!D114-$B$5 -> 14.1
A26: Ist die berechnete Stabbreite bei rechteckigem Querschnitt (D16-D23, G16-G23, J16-J23) größer als die Werte der maximal möglichen Stabbreite (E16-E23, H16-H23, K16-K23), so ist der Holmsteg an der Stelle der Steckverbindung zu verbreitern. Das gleiche gilt für die Rechnungen mit Kreisquerschnitt.
B38: Stützstoffeinlage (nicht lasttragend)
E51: Abstand von der Rumpfmittellinie (L(x) in mm) : | F51: 750 | G51: Wählen aus die liste!
E52: Maximale Dicke des Verbinders (H) : | F52: =VLOOKUP(F51,B16:F23,5) -> 22.26024026 | G52: mm
E53: Gewählte Dicke des Verbinders (H) : | F53: 22.3 | G53: mm
E54: Mbmax = | F54: =VLOOKUP(F51,'Berechnung der Werte'!C107:F118,4) -> 1012822.115 | G54: N/mm²
E55: Sigma = | F55: ='Berechnung der Werte'!I68 -> 800 | G55: N/mm²
E56: Maximale Breite des Verbinders (B) = | F56: =VLOOKUP(F51,B16:C23,2)-B5 -> 26.5 | G56: mm
E57: Breite des Verbinders (B) = | F57: 26.5
E60: Maximale Höhe (h) des Stützstoffs im Verbinder = | F60: =POWER(POWER(F53,3)-(F54*6*F53/F55/F57),1/3) -> 16.74750451 | G60: mm | H60: Bei negativen Werten an dieser Stelle müssen die Abmessungen des Verbinders vergrößert werden um mit Stützstoff zu arbeiten.
E61: Benötigte Dicke c = | F61: =(F53-F60)/2 -> 2.776247746 | G61: mm
E65: Länge des Verbinders ist mit | F65: 6 | G65: mal der Profilhöhe gerechnet (eine Hälfte der Verbinderlänge):
F66: 5 ist empfohlen
E68: Länge Verbinderhälfte = | F68: =F65*(VLOOKUP(F51,'Berechnung der Werte'!A22:E27,3)*VLOOKUP(F51,'Berechnung der Werte'!A22:E27,5)/100) -> 177.23232 | G68: mm

Sheet Roving-Gelege Umrechnung
B1: Erstellt von Jaromir Ufer
B2: Umrechnung bei gleichem Fasertyp (Roving / Gelege):
B4: Garnfeinheit Roving in [tex]: | C4: 1600 | E4: 1 tex: 1 Gramm pro 1000 Meter Garn oder Roving
B5: Anzahl Rovings: | C5: 1
B6: Flächengewicht Gelege in [g/m²]: | C6: 200
B8: Gelegebreite, die der Anzahl der Rovings entspricht in [mm]: | C8: =C5*C4/C6 -> 8 | E8: Rovinganzahl = Gelegebreite x Flächengewicht / tex-Zahl
B10: Umrechnung bei unterschiedlichem Fasertyp (Roving / Gelege):
B12: Zugfestigkeit Roving [MPa]: | C12: 3950
B13: Anzahl Rovings: | C13: 1
B14: Garnfeinheit (tex) Roving in [g/km]: | C14: 1600
B15: Dichte Rovings in [g/cm³]: | C15: 1.77
B17: Zugfestigkeit Gelege [MPa]: | C17: 2600
B18: Flächengewicht Gelege in [g/m²]: | C18: 250
B19: Dichte Rovings in [g/cm³]: | C19: 2.12
B21: Gelegebreite, die der Anzahl der Rovings entspricht in [mm]: | C21: =(C12*C13*C14/C15)/(C17*C18/C19) -> 11.64571925
